Cogmind - Beta 10.2 --- EXPLORER MODE // 2021.07.02 @ 11:51:35 Player: DaemonXI Result: Destroyed by D-53 Grenadier with Mini Grenade Launcher Performance ------------- Evolutions (0) 0 Regions Visited (2) 400 Robots Destroyed (11) 55 Value Destroyed (234) 234 Prototype IDs (0) 0 Alien Tech Used (0) 0 Bonus (0) 0 TOTAL SCORE: 689 Bonus ------- None Cogmind --------- Core Integrity 0/250 Matter 285/300 Energy 500/500 System Corruption 0% Temperature Cool (0) Movement Core (100) Ox1 Location -10/Mines Parts ------- > --- POWER (1) -------- (None) > --- PROPULSION (2) --- (None) > --- UTILITY (2) ------ High-capacity Battery Power Shielding > --- WEAPON (3) ------- (None) > --- INVENTORY (4) ---- Large Storage Unit Peak State ------------ > --- POWER ------------ Ion Engine > --- PROPULSION ------- Wheel Wheel > --- UTILITY ---------- Targeting Computer Power Shielding > --- WEAPON ----------- Small Laser Light Assault Rifle Light Assault Rifle > --- INVENTORY -------- Small Storage Unit High-capacity Battery Small Laser [Rating: 8] Favorites ----------- Power Ion Engine Engine Ion Engine Propulsion Wheel Wheel Wheel Utility Power Shielding Storage High-capacity Battery Processor Targeting Computer Protection Power Shielding Weapon Light Assault Rifle Energy Gun Small Laser Ballistic Gun Light Assault Rifle Build | -11 -10 -10 ------- Run | Scr Mat Min Slots Evolved 1 | . 1 . Power . | . . . Propulsion . | . . . Utility . | . . . Weapon 1 | . 1 . Parts Attached 12 | 9 1 2 Power 2 | 2 . . Engine 2 | 2 . . Core . | . . . Reactor . | . . . Propulsion 2 | 2 . . Treads . | . . . Leg . | . . . Wheel 2 | 2 . . Hover . | . . . Flight . | . . . Utility 3 | 2 . 1 Device . | . . . Storage 1 | . . 1 Processor 1 | 1 . . Hackware . | . . . Protection 1 | 1 . . Artifact . | . . . Weapon 5 | 3 1 1 Energy Gun 2 | 1 . 1 Energy Cannon . | . . . Ballistic Gun 3 | 2 1 . Ballistic Cannon . | . . . Launcher . | . . . Special Weapon . | . . . Impact Weapon . | . . . Slashing Weapon . | . . . Piercing Weapon . | . . . Special Melee Weapon . | . . . Unidentified Prototypes . | . . . Parts Lost 8 | . . 8 Power 1 | . . 1 Propulsion 2 | . . 2 Utility 1 | . . 1 Weapon 4 | . . 4 Highest Loss Streak 8 | . . 8 Average Slot Usage (%) 84 | . 89 73 Engine 11 | . 12 9 Wheel 22 | . 25 16 Processor 11 | . 12 9 Protection 12 | . 12 12 Energy Gun 10 | . 12 6 Ballistic Gun 15 | . 14 16 Naked Turns . | . . . Heaviest Build 9 | 8 9 9 Greatest Support 20 | 20 20 20 Greatest Overweight (x) 1 | . . 1 Average Overweight (x) . | . . . Largest Inventory Capacity 4 | 4 4 4 Average Capacity 4 | 4 4 4 Most Carried 4 | 2 4 3 Average Carried 2 | . 2 2 Final Capacity 4 | 4 4 4 Final Carried 3 | 1 3 1 Class Distribution -------------------- 73% | Hacker-Mutant 26% | Hacker-Gunner Dominant Class ---------------- Hacker-Mutant | -10/Materials Hacker-Gunner | -10/Mines Resources | -11 -10 -10 ----------- Run | Scr Mat Min Matter Collected 339 | 301 22 16 Remotely . | . . . Salvage Created 355 | 122 206 27 Parts 28 | 17 11 . Haulers Intercepted . | . . . Recyclers Shooed . | . . . Parts Field Recycled . | . . . Retrieved Matter . | . . . Parts Self-Destructed . | . . . Prevented . | . . . Kills | -11 -10 -10 ------- Run | Scr Mat Min Combat Hostiles Destroyed 6 | 1 4 1 Guns 6 | 1 4 1 Classes Destroyed 4 | 2 1 1 Tunneler 5 | 4 1 . Watcher 1 | . 1 . Grunt 5 | 1 4 . Assembled 1 | . . 1 Best Kill Streak 5 | 5 2 1 Combat Bots Only 2 | 1 2 1 Max Kills in Single Turn 1 | 1 1 1 Gunslinging . | . . . Exploded . | . . . Melee . | . . . Uniques/NPCs Destroyed . | . . . Combat | -11 -10 -10 -------- Run | Scr Mat Min Damage Taken 678 | 33 55 590 Core 255 | . 13 242 Absorbed by Shields . | . . . Core Remaining (%) 100 | 100 . . Volleys Fired 38 | 11 15 12 Largest 3 | 2 3 3 Hottest 80 | 60 80 80 Shots Fired 81 | 22 33 26 Gun 81 | 22 33 26 Cannon . | . . . Launcher . | . . . Special . | . . . Kinetic 47 | 11 18 18 Thermal 34 | 11 15 8 Explosive . | . . . Electromagnetic . | . . . Robot Hit Streak 21 | 6 21 17 Robot Miss Streak 1 | 1 1 1 Penetration Max . | . . . Secondary Targets 2 | . 1 1 Max Gunslinging Chain 1 | . 1 1 Shots Hit Robots 65 | 13 29 23 Core Hits 27 | 7 13 7 Critical Hits . | . . . Critical Kills . | . . . Critical Parts Destroyed . | . . . Melee Attacks . | . . . Impact . | . . . Slashing . | . . . Piercing . | . . . Sneak Attacks . | . . . Combat Hostiles . | . . . Follow-up Attacks . | . . . Damage Inflicted 582 | 129 267 186 Guns 582 | 129 267 186 Cannons . | . . . Explosions . | . . . Melee . | . . . Ramming . | . . . Kinetic 287 | 42 123 122 Thermal 295 | 87 144 64 Explosive . | . . . Electromagnetic . | . . . Impact . | . . . Slashing . | . . . Piercing . | . . . Highest Corruption . | . . . Average Corruption . | . . . Corruption Purged . | . . . Overload Shots . | . . . Overflow Damage . | . . . Projectiles . | . . . Explosions . | . . . Melee . | . . . Knockbacks . | . . . Impact . | . . . Kinetic . | . . . Secondary . | . . . Self-Inflicted Damage . | . . . Shots . | . . . Rammed . | . . . Targets Rammed . | . . . Kicked . | . . . Crushed . | . . . Highest Temperature 140 | 40 98 140 Average Temperature 44 | 21 35 82 Received Heat Transfer 81 | 30 51 . Siege Activations . | . . . Robots Corrupted . | . . . Combat Hostiles . | . . . Parts Fried . | . . . Impact Corruptions . | . . . Robots Melted . | . . . Combat Hostiles . | . . . Parts Melted 1 | . 1 . Heat Transferred 675 | 200 325 150 Parts Sabotaged . | . . . Parts Stolen . | . . . Parts Stripped . | . . . Power Chain Reactions . | . . . Missiles Intercepted . | . . . Alert | -11 -10 -10 ------- Run | Scr Mat Min Peak Influence 143 | 40 143 39 Initial 39 | . 19 39 Average 35 | 11 54 24 Maximum Alert Level . | . . . Low Security (%) 100 | 100 100 100 Level 1 . | . . . Level 2 . | . . . Level 3 . | . . . Level 4 . | . . . Level 5 . | . . . High Security . | . . . Max Security . | . . . Squads Dispatched 1 | . 1 . Investigation 1 | . 1 . Extermination . | . . . Reinforcement . | . . . Assault . | . . . Garrison . | . . . Intercept . | . . . Construction Impeded . | . . . Haulers Reinforced . | . . . Stealth | -11 -10 -10 --------- Run | Scr Mat Min Distress Signals . | . . . Communications Jammed . | . . . Distress Signals . | . . . Times Spotted 14 | 1 6 7 Peak Tracking Total 5 | 1 3 5 Tactical Retreats . | . . . Traps | -11 -10 -10 ------- Run | Scr Mat Min Traps Triggered . | . . . Indirectly . | . . . Trap Hack Attempts . | . . . Triggered . | . . . Disarmed . | . . . Reprogrammed . | . . . Reused . | . . . Traps Extracted . | . . . Installed . | . . . Triggered 1 | . . 1 Machines | -11 -10 -10 ---------- Run | Scr Mat Min Machines Disabled . | . . . Max in Single Turn . | . . . Machines Sabotaged . | . . . Garrisons Compromised . | . . . Overloaded Fab Kills . | . . . Fab Network Shutdowns . | . . . Hacking | -11 -10 -10 --------- Run | Scr Mat Min Machines Accessed 3 | . 3 . Terminals 3 | . 3 . Fabricators . | . . . Repair Stations . | . . . Recycling Units . | . . . Scanalyzers . | . . . Garrison Access . | . . . Total Hacks 17 | . 17 . Successful 12 | . 12 . Failed 5 | . 5 . Catastrophic . | . . . Database Lockouts . | . . . Manual . | . . . Terminals 17 | . 17 . Fabricators . | . . . Repair Stations . | . . . Recycling Units . | . . . Scanalyzers . | . . . Garrison Access . | . . . Terminal Hacks 12 | . 12 . Record 8 | . 8 . Locate Traps 1 | . 1 . Security Status 1 | . 1 . Recall Investigation 1 | . 1 . Zone Layout 1 | . 1 . Fabricator Hacks . | . . . Repair Station Hacks . | . . . Recycling Unit Hacks . | . . . Scanalyzer . | . . . Garrison Access Hacks . | . . . Unauthorized Hacks . | . . . Terminals . | . . . Fabricators . | . . . Repair Stations . | . . . Recycling Units . | . . . Scanalyzers . | . . . Garrison Access . | . . . Data Cores Recovered . | . . . Used . | . . . Hacking Detections 2 | . 2 . Full Trace Events 1 | . 1 . Feedback Events . | . . . Feedback Blocked . | . . . Robot Schematics Acquired . | . . . Robots Built . | . . . Matter . | . . . Time . | . . . Total Robot Build Rating . | . . . Part Schematics Acquired . | . . . Parts Built . | . . . Matter . | . . . Time . | . . . Total Part Build Rating . | . . . Parts Repaired . | . . . Time . | . . . Parts Recycled . | . . . Recycled Matter . | . . . Retrieved Matter . | . . . Retrieved Components . | . . . Parts Scanalyzed . | . . . Part Schematics Acquired . | . . . Parts Damaged . | . . . Bothacking | -11 -10 -10 ------------ Run | Scr Mat Min Used RIF Installer . | . . . Robots Hacked . | . . . Non-combat . | . . . Combat . | . . . Robot Hacks Applied . | . . . Relay Couplers Released . | . . . Robots Rewired . | . . . Allies Hacked . | . . . Hacks Repelled . | . . . Allies | -11 -10 -10 -------- Run | Scr Mat Min Total Allies . | . . . Largest Group . | . . . Highest-Rated Group . | . . . Highest-Rated Ally . | . . . Total Orders . | . . . Ally Attacks . | . . . Total Damage . | . . . Kills . | . . . Allies Corrupted . | . . . Allies Melted . | . . . Intel | -11 -10 -10 ------- Run | Scr Mat Min Robot Analysis Total . | . . . Derelict Logs Recovered . | . . . Drone Launches . | . . . Drone Recoveries . | . . . Exploration | -11 -10 -10 ------------- Run | Scr Mat Min Turns Passed 414 | 118 206 90 Spaces Moved 352 | 92 195 65 Core 23 | 17 . 6 Treads . | . . . Legs . | . . . Wheels 329 | 75 195 59 Hover . | . . . Flight . | . . . Fastest Speed 50 | 50 80 50 Average Speed 78 | 74 80 78 Slowest Speed 100 | 80 80 100 Overloaded Moves . | . . . Propulsion Burnouts . | . . . Robots Hopped . | . . . Cave-ins Triggered . | . . . Exploration Rate (%) 23 | 9 46 14 Regions Visited 2 Branch Regions 1 Pre-discovered Areas . | . . . Known Exits Taken 2 | 1 1 . Unknown Exits Taken . | . . . Scrap Searched . | . . . Spaces Dug . | . . . Terrain Destroyed . | . . . Melee . | . . . Projectile . | . . . AOE . | . . . Terrain Rammed . | . . . Walls Destroyed . | . . . Machines Disabled . | . . . Actions | -11 -10 -10 --------- Run | Scr Mat Min Total 427 | 122 218 87 Wait 11 | . 3 8 Move 350 | 91 194 65 Hop . | . . . Pick Up 13 | 9 4 . Fast Attach . | . . . Attach 12 | 9 1 2 Detach 1 | 1 . . Swap . | . . . Drop 2 | 1 1 . Fire 38 | 11 15 12 Melee . | . . . Ram . | . . . Kick . | . . . Crush . | . . . Escape Stasis . | . . . Rewire . | . . . Trap . | . . . Miscellaneous . | . . . Route ------- -11/Scrapyard -10/Materials (discovered 2 exits: *Mat / *Min) -10/Mines History --------- Turn | Location | Event 2 | -11/Scrapyard | Met Revision 17 66 | -11/Scrapyard | Identified exit to Materials 66 | -11/Scrapyard | Discovered exit to Materials (range 8) 119 | -11/Scrapyard | Entered Materials 119 | -10/Materials | Evolved 1 slot: Weapon x1 190 | -10/Materials | Identified exit to Materials 190 | -10/Materials | Discovered exit to Materials (range 13) 307 | -10/Materials | Identified exit to Mines 307 | -10/Materials | Discovered exit to Mines (range 6) 325 | -10/Materials | Entered Mines 340 | -10/Mines | Assembled infested the area 403 | -10/Mines | Core integrity fell below 50% 411 | -10/Mines | Core integrity fell below 20% 415 | -10/Mines | Destroyed by D-53 Grenadier with Mini Grenade Launcher Last Messages --------------- 00379_ U-05 Engineer builds a Wall. 00381_ The unstable cave ceiling collapses. 00395_ Wheel destroyed. 00396_ HV Slug penetrates as-14345. 00396_ as-14345 suffers critical hit. 00396_ as-14345 destroyed. 00396_ HV Slug penetrates Wall. 00398_ Ion Engine destroyed. 00399_ Lgt. Assault Rifle destroyed. 00399_ Targeting Computer destroyed. 00400_ The unstable cave ceiling collapses. 00402_ D-53 Grenadier destroyed. 00403_ The unstable cave ceiling collapses. 00406_ Sml. Laser destroyed. 00407_ The unstable cave ceiling collapses. Overweight warning: You are carrying more than your current propulsion can efficiently support, which slows movement; see status page ('s') or the top of the parts list for the specific mass vs. support values. 00412_ The unstable cave ceiling collapses. [Achievement: First Step to Greatness] Map ----- +----------------------------------------------------+ | ?????????????????#???????????????????? | | ????????????????# ?????????????????? | | ???????????????? ###???????????????? | | ???????????????# ##??????????????? | | ?? ???????????## ##?????????????? | | ??# ?????????## ##????? ??????? | | ??# ????????# ##??? ???????? | | ???# ?????### #??? ???????? | | ???# ???## #?? #???????? | | ????? #### #??? #???????? | | ?????? "%% #### #???????? | | ????????" % ????????? | | ????????## # ?????????? | | ????????# ### #?# #?????????? | | ????????# # # #### #?????????? | | ????????# # ## ###???????? | | ????????# ## ## ###?????? | | ????????# # # # ####??? | | ????????### #??? | | ??????????## #??? | | ???????????## #??? | | ????????????### # ###??? | | ??????????????### # ##????? | | ??????????????## ##?????? | | ??????????????# ##??????? | | ???????????#### @ #???????? | | ???????????#g d #???????? | | ???????????#g #???????? | | ???????????#g ##???????? | | ???????????#### #????????? | | ??????????????## # ###????????? | | ??????????????# ######???????????? | | | | | | | | | | | | | | | | | | | | | | | | | | | | | | | | | | | | | +----------------------------------------------------+ Best States ------------- Heat Dissipation 25 Energy Generation 10 Energy Capacity 500 Matter Stores 300 Matter Capacity 300 Sight Range 16 Terrain Scan Density 10 Resistance: KI 35 Resistance: TH 35 Resistance: EX 35 Resistance: EM 35 Resistance: I 35 Resistance: S 35 Resistance: P 35 Power Shielding 33 Evasion (%) 50 Targeting Accuracy 5 Offensive Hacking 20 Item Schematics ----------------- None Robot Schematics ------------------ None Fabricated ------------ Nothing Alien Tech Used ----------------- None Achievements -------------- Crack Shot First Step to Greatness One Hack Too Far Challenges ------------ None Game ------ Seed PortableShadingThruster Manual? 0 Play Time 00:12:04 Cumulative 0.3 hours Start 2021.07.02 @ 11:40:08 End 2021.07.02 @ 11:51:35 Sessions 1 Manual Loads 0 Difficulty Explorer Special Mode None Game No. 1 Rogue 0 Adventurer 0 Explorer 1 Win Type - Total 0 Types 0/0/0/0/0/0/0/0/0 Lore% 1 Gallery% 0 Achievement% 1 Wizard Run 0 Options --------- ASCII 0 Keyboard 0 Movement Mouse Keybinds 0 Fullscreen 1 Font 24/Proggy Map View 76x50 Tactical HUD 1 Map Filters NONE Filters NONE Steam 1 RUN: 47c3cb76-e84c-47b6-8e94-2a923add8245